[Event "Titled Tuesday Blitz August 08 Early 2023"]
[White "Jaferian, Koosha"]
[Black "Perske, Thore"]
[WhiteFideId "12507440"]
[BlackFideId "12902195"]
[WhiteElo "2698"]
[BlackElo "2510"]
[Result "1-0"]
[Round "7"]
[TimeControl "180+1"]
[Date "2023.08.08"]
[WhiteClock "0:00:53"]
[BlackClock "0:00:15"]
[Board "99"]

1. e4 {[%clk 0:03:00]}  e6 {[%clk 0:02:58]} 2. d4 {[%clk 0:03:00]}  d5 {[%clk 0:02:55]} 3. Bd3 {[%clk 0:03:00]}  dxe4 {[%clk 0:02:54]} 4. Bxe4 {[%clk 0:03:01]}  Nf6 {[%clk 0:02:55]} 5. Bf3 {[%clk 0:03:01]}  c5 {[%clk 0:02:55]} 6. Ne2 {[%clk 0:03:01]}  Be7 {[%clk 0:02:55]} 7. Be3 {[%clk 0:02:59]}  O-O {[%clk 0:02:44]} 8. O-O {[%clk 0:02:56]}  cxd4 {[%clk 0:02:44]} 9. Qxd4 {[%clk 0:02:53]}  Nc6 {[%clk 0:02:43]} 10. Qa4 {[%clk 0:02:47]}  Ne5 {[%clk 0:02:33]} 11. Nd2 {[%clk 0:02:41]}  Bd7 {[%clk 0:02:28]} 12. Qb3 {[%clk 0:02:38]}  Nxf3+ {[%clk 0:02:26]} 13. Nxf3 {[%clk 0:02:39]}  Bc6 {[%clk 0:02:26]} 14. Ned4 {[%clk 0:02:35]}  Be4 {[%clk 0:02:23]} 15. Rad1 {[%clk 0:02:32]}  Qa5 {[%clk 0:02:12]} 16. Rfe1 {[%clk 0:02:07]}  Rac8 {[%clk 0:02:02]} 17. c3 {[%clk 0:01:57]}  Bd5 {[%clk 0:01:59]} 18. Qc2 {[%clk 0:01:56]}  Be4 {[%clk 0:01:50]} 19. Qb3 {[%clk 0:01:55]}  a6 {[%clk 0:01:48]} 20. Nxe6 {[%clk 0:01:46]}  Bd5 {[%clk 0:01:43]} 21. Rxd5 {[%clk 0:01:45]}  Qxd5 {[%clk 0:01:32]} 22. Qxd5 {[%clk 0:01:44]}  Nxd5 {[%clk 0:01:33]} 23. Nxf8 {[%clk 0:01:45]}  Nxe3 {[%clk 0:01:27]} 24. Nxh7 {[%clk 0:01:29]}  Nd5 {[%clk 0:00:42]} 25. Nhg5 {[%clk 0:01:28]}  Bf6 {[%clk 0:00:40]} 26. Ne4 {[%clk 0:01:27]}  Be7 {[%clk 0:00:38]} 27. g3 {[%clk 0:01:18]}  Nb6 {[%clk 0:00:37]} 28. Ned2 {[%clk 0:01:17]}  Bf6 {[%clk 0:00:35]} 29. Kg2 {[%clk 0:01:16]}  Na4 {[%clk 0:00:34]} 30. Ne4 {[%clk 0:01:11]}  Nxb2 {[%clk 0:00:31]} 31. Nxf6+ {[%clk 0:01:11]}  gxf6 {[%clk 0:00:32]} 32. Rb1 {[%clk 0:01:11]}  Na4 {[%clk 0:00:31]} 33. Rxb7 {[%clk 0:01:11]}  Nxc3 {[%clk 0:00:31]} 34. a3 {[%clk 0:01:05]}  Nb5 {[%clk 0:00:29]} 35. Rb6 {[%clk 0:01:03]}  Nxa3 {[%clk 0:00:20]} 36. Rxa6 {[%clk 0:01:03]}  Nb5 {[%clk 0:00:19]} 37. Rxf6 {[%clk 0:01:04]}  Nc7 {[%clk 0:00:18]} 38. Ne5 {[%clk 0:01:02]}  Rf8 {[%clk 0:00:18]} 39. h4 {[%clk 0:00:59]}  Nd5 {[%clk 0:00:19]} 40. Rd6 {[%clk 0:00:58]}  Ne7 {[%clk 0:00:19]} 41. h5 {[%clk 0:00:58]}  Nf5 {[%clk 0:00:20]} 42. Rf6 {[%clk 0:00:57]}  Nd4 {[%clk 0:00:19]} 43. f4 {[%clk 0:00:55]}  Ne6 {[%clk 0:00:20]} 44. Nxf7 {[%clk 0:00:52]}  Nxf4+ {[%clk 0:00:17]} 45. Rxf4 {[%clk 0:00:52]}  Rxf7 {[%clk 0:00:16]} 46. Rxf7 {[%clk 0:00:53]}  Kxf7 {[%clk 0:00:15]} 47. g4 {[%clk 0:00:53]} 1-0


[Site "https://www.chess.com"]

[Event "Titled Tuesday Blitz August 08 Early 2023"]
[White "KarolKacprzak"]
[Black "Willy, Stephen"]
[BlackFideId "30981468"]
[WhiteElo "2674"]
[BlackElo "2507"]
[Result "1-0"]
[Round "7"]
[TimeControl "180+1"]
[Date "2023.08.08"]
[WhiteClock "0:01:15"]
[BlackClock "0:00:32"]
[Board "100"]

1. d4 {[%clk 0:03:00]}  d5 {[%clk 0:02:56]} 2. c4 {[%clk 0:02:59]}  e6 {[%clk 0:02:55]} 3. Nf3 {[%clk 0:02:58]}  Nf6 {[%clk 0:02:53]} 4. Nc3 {[%clk 0:02:55]}  Be7 {[%clk 0:02:52]} 5. Bg5 {[%clk 0:02:54]}  O-O {[%clk 0:02:51]} 6. e3 {[%clk 0:02:54]}  b6 {[%clk 0:02:49]} 7. Qc2 {[%clk 0:02:50]}  h6 {[%clk 0:02:46]} 8. h4 {[%clk 0:02:43]}  Bb7 {[%clk 0:02:40]} 9. Bxf6 {[%clk 0:02:42]}  Bxf6 {[%clk 0:02:39]} 10. cxd5 {[%clk 0:02:43]}  exd5 {[%clk 0:02:40]} 11. Bd3 {[%clk 0:02:42]}  c5 {[%clk 0:02:27]} 12. O-O-O {[%clk 0:02:38]}  Nc6 {[%clk 0:02:24]} 13. a3 {[%clk 0:02:36]}  c4 {[%clk 0:02:17]} 14. Bf5 {[%clk 0:02:22]}  a6 {[%clk 0:02:04]} 15. g4 {[%clk 0:02:21]}  g6 {[%clk 0:02:02]} 16. g5 {[%clk 0:02:21]}  Bg7 {[%clk 0:01:54]} 17. gxh6 {[%clk 0:02:03]}  Bxh6 {[%clk 0:01:55]} 18. Bg4 {[%clk 0:01:47]}  f5 {[%clk 0:01:48]} 19. h5 {[%clk 0:01:47]}  fxg4 {[%clk 0:01:29]} 20. Qxg6+ {[%clk 0:01:46]}  Bg7 {[%clk 0:01:26]} 21. h6 {[%clk 0:01:47]}  Qf6 {[%clk 0:01:22]} 22. Qxg4 {[%clk 0:01:47]}  Bc8 {[%clk 0:01:17]} 23. Qg2 {[%clk 0:01:27]}  Ra7 {[%clk 0:01:15]} 24. Ne5 {[%clk 0:01:18]}  Nxe5 {[%clk 0:01:07]} 25. dxe5 {[%clk 0:01:18]}  Qxf2 {[%clk 0:01:04]} 26. Qxd5+ {[%clk 0:01:17]}  Rff7 {[%clk 0:00:45]} 27. hxg7 {[%clk 0:01:16]}  Bf5 {[%clk 0:00:34]} 28. Qd8+ {[%clk 0:01:14]}  Kxg7 {[%clk 0:00:34]} 29. Qh8+ {[%clk 0:01:14]}  Kg6 {[%clk 0:00:32]} 30. Qh6# {[%clk 0:01:15]} 1-0


[Site "https://www.chess.com"]

[Event "Titled Tuesday Blitz August 08 Early 2023"]
[White "Liu, Casper"]
[Black "Godzwon, Iwo"]
[WhiteFideId "1454153"]
[BlackFideId "21802483"]
[WhiteElo "2493"]
[BlackElo "2670"]
[Result "1-0"]
[Round "7"]
[TimeControl "180+1"]
[Date "2023.08.08"]
[WhiteClock "0:01:14"]
[BlackClock "0:00:59"]
[Board "102"]

1. e4 {[%clk 0:03:00]}  c5 {[%clk 0:02:37]} 2. d4 {[%clk 0:03:01]}  cxd4 {[%clk 0:02:37]} 3. Qxd4 {[%clk 0:03:02]}  Nc6 {[%clk 0:02:36]} 4. Qe3 {[%clk 0:03:02]}  Nf6 {[%clk 0:02:36]} 5. Nc3 {[%clk 0:03:03]}  e6 {[%clk 0:02:35]} 6. Bd2 {[%clk 0:03:03]}  d5 {[%clk 0:02:34]} 7. exd5 {[%clk 0:03:04]}  Nxd5 {[%clk 0:02:34]} 8. Nxd5 {[%clk 0:03:05]}  Qxd5 {[%clk 0:02:35]} 9. Qb3 {[%clk 0:03:04]}  Qe5+ {[%clk 0:02:20]} 10. Be3 {[%clk 0:02:55]}  Bc5 {[%clk 0:02:17]} 11. Nf3 {[%clk 0:02:54]}  Qh5 {[%clk 0:02:15]} 12. O-O-O {[%clk 0:02:49]}  O-O {[%clk 0:02:11]} 13. g4 {[%clk 0:02:37]}  Bxe3+ {[%clk 0:02:10]} 14. Qxe3 {[%clk 0:02:38]}  Qxg4 {[%clk 0:02:06]} 15. Rg1 {[%clk 0:02:32]}  Qf5 {[%clk 0:01:59]} 16. Bd3 {[%clk 0:02:31]}  Qf6 {[%clk 0:01:59]} 17. Ng5 {[%clk 0:02:12]}  g6 {[%clk 0:01:52]} 18. Qh3 {[%clk 0:02:08]}  Qg7 {[%clk 0:01:48]} 19. Qh4 {[%clk 0:01:46]}  Ne5 {[%clk 0:01:42]} 20. Rg3 {[%clk 0:01:36]}  Bd7 {[%clk 0:01:39]} 21. Rh3 {[%clk 0:01:21]}  h5 {[%clk 0:01:24]} 22. Ne4 {[%clk 0:01:20]}  Rfd8 {[%clk 0:00:58]} 23. Nf6+ {[%clk 0:01:16]}  Kf8 {[%clk 0:00:59]} 24. Qb4# {[%clk 0:01:14]} 1-0


[Site "https://www.chess.com"]

[Event "Titled Tuesday Blitz August 08 Early 2023"]
[White "Hua, Lefong"]
[Black "Ocido, Michael"]
[WhiteFideId "2602253"]
[BlackFideId "115201920"]
[WhiteElo "2652"]
[BlackElo "2490"]
[Result "0-1"]
[Round "7"]
[TimeControl "180+1"]
[Date "2023.08.08"]
[WhiteClock "0:00:34"]
[BlackClock "0:00:20"]
[Board "103"]

1. d4 {[%clk 0:03:00]}  d5 {[%clk 0:02:57]} 2. c4 {[%clk 0:03:01]}  e6 {[%clk 0:02:58]} 3. Nc3 {[%clk 0:03:01]}  Nf6 {[%clk 0:02:58]} 4. cxd5 {[%clk 0:03:02]}  exd5 {[%clk 0:02:58]} 5. Bg5 {[%clk 0:03:02]}  c6 {[%clk 0:02:57]} 6. e3 {[%clk 0:03:03]}  Be7 {[%clk 0:02:58]} 7. Bd3 {[%clk 0:03:03]}  Nbd7 {[%clk 0:02:56]} 8. Qc2 {[%clk 0:03:03]}  Nh5 {[%clk 0:02:56]} 9. Bxe7 {[%clk 0:03:03]}  Qxe7 {[%clk 0:02:57]} 10. Nge2 {[%clk 0:03:03]}  g6 {[%clk 0:02:57]} 11. O-O {[%clk 0:03:02]}  O-O {[%clk 0:02:50]} 12. Rae1 {[%clk 0:03:03]}  Ndf6 {[%clk 0:02:46]} 13. Nc1 {[%clk 0:02:59]}  Re8 {[%clk 0:02:37]} 14. f3 {[%clk 0:02:54]}  Ng7 {[%clk 0:02:00]} 15. e4 {[%clk 0:02:46]}  Qb4 {[%clk 0:01:42]} 16. N1e2 {[%clk 0:02:24]}  Ne6 {[%clk 0:01:31]} 17. Qb3 {[%clk 0:02:02]}  a5 {[%clk 0:01:19]} 18. e5 {[%clk 0:01:57]}  Nh5 {[%clk 0:01:10]} 19. Kh1 {[%clk 0:01:41]}  Nhf4 {[%clk 0:01:04]} 20. Nxf4 {[%clk 0:01:35]}  Nxf4 {[%clk 0:01:03]} 21. Bb1 {[%clk 0:01:29]}  Qxd4 {[%clk 0:01:03]} 22. g3 {[%clk 0:01:26]}  Nd3 {[%clk 0:00:56]} 23. Nxd5 {[%clk 0:01:09]}  Nf2+ {[%clk 0:00:44]} 24. Kg2 {[%clk 0:00:57]}  Bh3+ {[%clk 0:00:43]} 25. Kg1 {[%clk 0:00:51]}  Ng4+ {[%clk 0:00:29]} 26. Kh1 {[%clk 0:00:43]}  Nf2+ {[%clk 0:00:29]} 27. Kg1 {[%clk 0:00:43]}  Bxf1 {[%clk 0:00:27]} 28. Nf6+ {[%clk 0:00:40]}  Kg7 {[%clk 0:00:23]} 29. Nxe8+ {[%clk 0:00:39]}  Rxe8 {[%clk 0:00:23]} 30. Kxf1 {[%clk 0:00:40]}  Nh3 {[%clk 0:00:21]} 31. Qc2 {[%clk 0:00:35]}  Qg1+ {[%clk 0:00:20]} 32. Ke2 {[%clk 0:00:35]}  Rxe5+ {[%clk 0:00:20]} 33. Kd3 {[%clk 0:00:34]}  Qxe1 {[%clk 0:00:20]} 0-1


[Site "https://www.chess.com"]

[Event "Titled Tuesday Blitz August 08 Early 2023"]
[White "kuanysh1981"]
[Black "Dehtiarov, Roman"]
[BlackFideId "14186640"]
[WhiteElo "2489"]
[BlackElo "2651"]
[Result "0-1"]
[Round "7"]
[TimeControl "180+1"]
[Date "2023.08.08"]
[WhiteClock "0:01:55"]
[BlackClock "0:00:53"]
[Board "104"]

1. e4 {[%clk 0:03:00]}  e5 {[%clk 0:03:00]} 2. Nf3 {[%clk 0:02:59]}  Nc6 {[%clk 0:03:00]} 3. Bc4 {[%clk 0:02:59]}  Bc5 {[%clk 0:03:00]} 4. O-O {[%clk 0:02:59]}  Nf6 {[%clk 0:03:01]} 5. d4 {[%clk 0:02:59]}  Bxd4 {[%clk 0:03:00]} 6. Nxd4 {[%clk 0:02:59]}  Nxd4 {[%clk 0:03:00]} 7. Bg5 {[%clk 0:02:59]}  h6 {[%clk 0:02:57]} 8. Bh4 {[%clk 0:02:59]}  g5 {[%clk 0:02:53]} 9. f4 {[%clk 0:02:58]}  Nxe4 {[%clk 0:02:12]} 10. fxe5 {[%clk 0:02:47]}  Ne6 {[%clk 0:02:08]} 11. Qh5 {[%clk 0:02:31]}  Qe7 {[%clk 0:02:02]} 12. Bg3 {[%clk 0:02:18]}  Qc5+ {[%clk 0:01:50]} 13. Kh1 {[%clk 0:02:17]}  Qxc4 {[%clk 0:01:45]} 14. Qxf7+ {[%clk 0:02:17]}  Kd8 {[%clk 0:01:45]} 15. Nd2 {[%clk 0:02:18]}  Qb4 {[%clk 0:00:56]} 16. Qf6+ {[%clk 0:02:12]}  Nxf6 {[%clk 0:00:55]} 17. c3 {[%clk 0:02:03]}  Qc5 {[%clk 0:00:52]} 18. exf6 {[%clk 0:02:02]}  Rf8 {[%clk 0:00:51]} 19. Rad1 {[%clk 0:02:00]}  d6 {[%clk 0:00:51]} 20. Ne4 {[%clk 0:02:00]}  Qc6 {[%clk 0:00:52]} 21. Nxd6 {[%clk 0:01:57]}  cxd6 {[%clk 0:00:51]} 22. Rxd6+ {[%clk 0:01:58]}  Qxd6 {[%clk 0:00:51]} 23. Bxd6 {[%clk 0:01:58]}  Rf7 {[%clk 0:00:52]} 24. Be7+ {[%clk 0:01:58]}  Rxe7 {[%clk 0:00:52]} 25. fxe7+ {[%clk 0:01:55]}  Kxe7 {[%clk 0:00:53]} 0-1


[Site "https://www.chess.com"]

[Event "Titled Tuesday Blitz August 08 Early 2023"]
[White "Kuznetsov, Mikhail"]
[Black "Jeet, Jain"]
[WhiteFideId "4117190"]
[BlackFideId "5073022"]
[WhiteElo "2487"]
[BlackElo "2630"]
[Result "0-1"]
[Round "7"]
[TimeControl "180+1"]
[Date "2023.08.08"]
[WhiteClock "0:00:01"]
[BlackClock "0:00:18"]
[Board "107"]

1. Nf3 {[%clk 0:02:13]}  c5 {[%clk 0:02:57]} 2. g3 {[%clk 0:02:13]}  Nc6 {[%clk 0:02:56]} 3. d4 {[%clk 0:02:12]}  cxd4 {[%clk 0:02:55]} 4. Nxd4 {[%clk 0:02:13]}  g6 {[%clk 0:02:55]} 5. Bg2 {[%clk 0:02:12]}  Bg7 {[%clk 0:02:54]} 6. Nb3 {[%clk 0:02:13]}  Nf6 {[%clk 0:02:52]} 7. O-O {[%clk 0:02:09]}  d5 {[%clk 0:02:50]} 8. c4 {[%clk 0:02:08]}  dxc4 {[%clk 0:02:48]} 9. Bxc6+ {[%clk 0:02:07]}  bxc6 {[%clk 0:02:48]} 10. Qxd8+ {[%clk 0:02:08]}  Kxd8 {[%clk 0:02:49]} 11. Na5 {[%clk 0:02:08]}  Bd7 {[%clk 0:02:41]} 12. Nxc4 {[%clk 0:02:06]}  Nd5 {[%clk 0:02:40]} 13. Nbd2 {[%clk 0:01:47]}  Nb6 {[%clk 0:02:28]} 14. Na5 {[%clk 0:01:39]}  Kc7 {[%clk 0:02:26]} 15. Ndb3 {[%clk 0:01:35]}  Rhd8 {[%clk 0:02:16]} 16. Bf4+ {[%clk 0:01:20]}  e5 {[%clk 0:02:15]} 17. Be3 {[%clk 0:01:21]}  Nd5 {[%clk 0:02:11]} 18. Nc4 {[%clk 0:01:16]}  Nxe3 {[%clk 0:02:09]} 19. Nxe3 {[%clk 0:01:15]}  Be6 {[%clk 0:02:06]} 20. Nc5 {[%clk 0:01:13]}  Rd2 {[%clk 0:01:49]} 21. Nxe6+ {[%clk 0:00:54]}  fxe6 {[%clk 0:01:50]} 22. Nc4 {[%clk 0:00:53]}  Rxe2 {[%clk 0:01:47]} 23. Rfe1 {[%clk 0:00:42]}  Rxe1+ {[%clk 0:01:46]} 24. Rxe1 {[%clk 0:00:41]}  Rb8 {[%clk 0:01:45]} 25. b3 {[%clk 0:00:39]}  Rb5 {[%clk 0:01:44]} 26. f3 {[%clk 0:00:36]}  Rd5 {[%clk 0:01:33]} 27. Kf2 {[%clk 0:00:35]}  Kd7 {[%clk 0:01:27]} 28. h4 {[%clk 0:00:19]}  h5 {[%clk 0:01:24]} 29. Re2 {[%clk 0:00:06]}  Ke7 {[%clk 0:01:24]} 30. Rd2 {[%clk 0:00:06]}  Kf6 {[%clk 0:01:16]} 31. Re2 {[%clk 0:00:05]}  Bf8 {[%clk 0:01:16]} 32. Ke1 {[%clk 0:00:03]}  Bb4+ {[%clk 0:01:13]} 33. Kf1 {[%clk 0:00:03]}  Rd1+ {[%clk 0:01:10]} 34. Kg2 {[%clk 0:00:03]}  Bc3 {[%clk 0:01:09]} 35. Ne3 {[%clk 0:00:02]}  Ra1 {[%clk 0:01:02]} 36. g4 {[%clk 0:00:01]}  Bd4 {[%clk 0:01:01]} 37. Nc4 {[%clk 0:00:01]}  hxg4 {[%clk 0:00:58]} 38. fxg4 {[%clk 0:00:01]}  Rg1+ {[%clk 0:00:58]} 39. Kf3 {[%clk 0:00:01]}  Rh1 {[%clk 0:00:56]} 40. Kg2 {[%clk 0:00:02]}  Rxh4 {[%clk 0:00:56]} 41. Kg3 {[%clk 0:00:03]}  Rh1 {[%clk 0:00:56]} 42. Nd6 {[%clk 0:00:03]}  Rg1+ {[%clk 0:00:55]} 43. Kf3 {[%clk 0:00:03]}  Rf1+ {[%clk 0:00:53]} 44. Kg2 {[%clk 0:00:04]}  Rb1 {[%clk 0:00:48]} 45. Ne4+ {[%clk 0:00:03]}  Ke7 {[%clk 0:00:49]} 46. Kf3 {[%clk 0:00:03]}  a5 {[%clk 0:00:45]} 47. Kg2 {[%clk 0:00:03]}  c5 {[%clk 0:00:43]} 48. Rc2 {[%clk 0:00:02]}  Rg1+ {[%clk 0:00:38]} 49. Kh3 {[%clk 0:00:03]}  Ra1 {[%clk 0:00:31]} 50. Kg3 {[%clk 0:00:03]}  Kd7 {[%clk 0:00:29]} 51. Nf6+ {[%clk 0:00:03]}  Kc6 {[%clk 0:00:29]} 52. Ne4 {[%clk 0:00:04]}  Re1 {[%clk 0:00:27]} 53. Ng5 {[%clk 0:00:03]}  Kd5 {[%clk 0:00:20]} 54. Nf3 {[%clk 0:00:03]}  Re3 {[%clk 0:00:19]} 55. Kg2 {[%clk 0:00:02]}  e4 {[%clk 0:00:19]} 56. Nd2 {[%clk 0:00:03]}  Re2+ {[%clk 0:00:18]} 57. Kf1 {[%clk 0:00:02]}  Rf2+ {[%clk 0:00:19]} 58. Ke1 {[%clk 0:00:02]}  e3 {[%clk 0:00:18]} 59. Nc4 {[%clk 0:00:01]}  Rxc2 {[%clk 0:00:18]} 60. Nb6+ {[%clk 0:00:01]}  Ke4 {[%clk 0:00:18]} 0-1


[Site "https://www.chess.com"]

[Event "Titled Tuesday Blitz August 08 Early 2023"]
[White "Reprintsev, Alexander"]
[Black "Bilan, Danila"]
[WhiteFideId "14100541"]
[BlackFideId "24161918"]
[WhiteElo "2473"]
[BlackElo "2594"]
[Result "1-0"]
[Round "7"]
[TimeControl "180+1"]
[Date "2023.08.08"]
[WhiteClock "0:00:15"]
[BlackClock "0:00:10"]
[Board "113"]

1. e4 {[%clk 0:03:00]}  c6 {[%clk 0:03:00]} 2. Nf3 {[%clk 0:02:59]}  d5 {[%clk 0:03:01]} 3. Nc3 {[%clk 0:02:59]}  Bg4 {[%clk 0:02:59]} 4. h3 {[%clk 0:02:56]}  Bxf3 {[%clk 0:02:58]} 5. Qxf3 {[%clk 0:02:55]}  e6 {[%clk 0:02:59]} 6. Be2 {[%clk 0:02:52]}  Nd7 {[%clk 0:02:57]} 7. d4 {[%clk 0:02:38]}  dxe4 {[%clk 0:02:51]} 8. Nxe4 {[%clk 0:02:35]}  Ngf6 {[%clk 0:02:52]} 9. c3 {[%clk 0:02:29]}  Be7 {[%clk 0:02:48]} 10. O-O {[%clk 0:02:27]}  O-O {[%clk 0:02:47]} 11. Bf4 {[%clk 0:02:19]}  Nxe4 {[%clk 0:02:33]} 12. Qxe4 {[%clk 0:02:13]}  Nf6 {[%clk 0:02:29]} 13. Qc2 {[%clk 0:02:10]}  Bd6 {[%clk 0:02:27]} 14. Bg5 {[%clk 0:02:09]}  h6 {[%clk 0:02:26]} 15. Bh4 {[%clk 0:02:09]}  Be7 {[%clk 0:02:23]} 16. Bg3 {[%clk 0:02:08]}  Rc8 {[%clk 0:02:22]} 17. a4 {[%clk 0:02:04]}  c5 {[%clk 0:02:18]} 18. dxc5 {[%clk 0:02:00]}  Bxc5 {[%clk 0:02:17]} 19. Bf3 {[%clk 0:01:58]}  Qe7 {[%clk 0:02:07]} 20. Rfd1 {[%clk 0:01:40]}  Rfd8 {[%clk 0:02:04]} 21. Qb3 {[%clk 0:01:39]}  b6 {[%clk 0:01:56]} 22. a5 {[%clk 0:01:36]}  Rxd1+ {[%clk 0:01:33]} 23. Qxd1 {[%clk 0:01:34]}  Rd8 {[%clk 0:01:28]} 24. Qe2 {[%clk 0:01:27]}  Bd6 {[%clk 0:01:15]} 25. axb6 {[%clk 0:01:22]}  axb6 {[%clk 0:01:10]} 26. Bxd6 {[%clk 0:01:11]}  Rxd6 {[%clk 0:01:11]} 27. Ra8+ {[%clk 0:01:05]}  Kh7 {[%clk 0:01:09]} 28. Qe3 {[%clk 0:00:55]}  e5 {[%clk 0:01:01]} 29. Be2 {[%clk 0:00:52]}  g6 {[%clk 0:00:43]} 30. Bc4 {[%clk 0:00:47]}  e4 {[%clk 0:00:35]} 31. g3 {[%clk 0:00:39]}  Qd7 {[%clk 0:00:28]} 32. Kg2 {[%clk 0:00:35]}  Kg7 {[%clk 0:00:28]} 33. Bb3 {[%clk 0:00:29]}  Rd3 {[%clk 0:00:23]} 34. Qxb6 {[%clk 0:00:25]}  e3 {[%clk 0:00:17]} 35. Ra7 {[%clk 0:00:21]}  Qd8 {[%clk 0:00:13]} 36. Rxf7+ {[%clk 0:00:20]}  Kh8 {[%clk 0:00:13]} 37. Qxd8+ {[%clk 0:00:19]}  Rxd8 {[%clk 0:00:14]} 38. Rxf6 {[%clk 0:00:19]}  Rd2 {[%clk 0:00:12]} 39. Kf1 {[%clk 0:00:18]}  Rxb2 {[%clk 0:00:12]} 40. Bc4 {[%clk 0:00:17]}  Rc2 {[%clk 0:00:12]} 41. fxe3 {[%clk 0:00:16]}  Rxc3 {[%clk 0:00:13]} 42. Be2 {[%clk 0:00:15]}  Kg7 {[%clk 0:00:13]} 43. Rf3 {[%clk 0:00:14]}  Rc6 {[%clk 0:00:13]} 44. Kf2 {[%clk 0:00:15]}  Rd6 {[%clk 0:00:14]} 45. e4 {[%clk 0:00:15]}  Rb6 {[%clk 0:00:13]} 46. e5 {[%clk 0:00:16]}  Rb5 {[%clk 0:00:14]} 47. Re3 {[%clk 0:00:17]}  Rb4 {[%clk 0:00:13]} 48. Bg4 {[%clk 0:00:18]}  h5 {[%clk 0:00:13]} 49. Bd7 {[%clk 0:00:17]}  Kf7 {[%clk 0:00:13]} 50. e6+ {[%clk 0:00:18]}  Ke7 {[%clk 0:00:14]} 51. h4 {[%clk 0:00:18]}  Rb2+ {[%clk 0:00:14]} 52. Kf3 {[%clk 0:00:18]}  Rb4 {[%clk 0:00:15]} 53. Kg2 {[%clk 0:00:18]}  Rb2+ {[%clk 0:00:15]} 54. Kh3 {[%clk 0:00:19]}  Rb1 {[%clk 0:00:16]} 55. Rf3 {[%clk 0:00:19]}  Kd6 {[%clk 0:00:15]} 56. Bc8 {[%clk 0:00:18]}  Re1 {[%clk 0:00:14]} 57. Rf7 {[%clk 0:00:18]}  Re2 {[%clk 0:00:09]} 58. Rd7+ {[%clk 0:00:18]}  Kc6 {[%clk 0:00:09]} 59. e7 {[%clk 0:00:18]}  Re1 {[%clk 0:00:09]} 60. Kg2 {[%clk 0:00:17]}  Re3 {[%clk 0:00:09]} 61. Kf2 {[%clk 0:00:17]}  Re5 {[%clk 0:00:10]} 62. Kf3 {[%clk 0:00:17]}  Rf5+ {[%clk 0:00:10]} 63. Ke4 {[%clk 0:00:16]}  Rf1 {[%clk 0:00:11]} 64. Kd3 {[%clk 0:00:15]}  Re1 {[%clk 0:00:12]} 65. Kd2 {[%clk 0:00:15]}  Rf1 {[%clk 0:00:10]} 66. e8=Q {[%clk 0:00:15]} 1-0


[Site "https://www.chess.com"]

[Event "Titled Tuesday Blitz August 08 Early 2023"]
[White "Bach Ngoc Thuy Duong"]
[Black "Zavgorodniy, Sergiy"]
[WhiteFideId "12408956"]
[BlackFideId "14110148"]
[WhiteElo "2468"]
[BlackElo "2588"]
[Result "1-0"]
[Round "7"]
[TimeControl "180+1"]
[Date "2023.08.08"]
[WhiteClock "0:00:24"]
[BlackClock "0:00:00"]
[Board "115"]

1. d4 {[%clk 0:03:00]}  Nf6 {[%clk 0:02:59]} 2. c4 {[%clk 0:03:01]}  d6 {[%clk 0:02:57]} 3. Nc3 {[%clk 0:03:01]}  Nbd7 {[%clk 0:02:57]} 4. e4 {[%clk 0:03:00]}  c6 {[%clk 0:02:57]} 5. Nf3 {[%clk 0:03:01]}  e5 {[%clk 0:02:57]} 6. Be2 {[%clk 0:03:01]}  Be7 {[%clk 0:02:56]} 7. O-O {[%clk 0:03:00]}  O-O {[%clk 0:02:57]} 8. Re1 {[%clk 0:02:59]}  a6 {[%clk 0:02:56]} 9. a4 {[%clk 0:02:50]}  a5 {[%clk 0:02:50]} 10. Rb1 {[%clk 0:02:41]}  exd4 {[%clk 0:02:48]} 11. Nxd4 {[%clk 0:02:40]}  Nc5 {[%clk 0:02:49]} 12. f3 {[%clk 0:02:30]}  Re8 {[%clk 0:02:47]} 13. Bf1 {[%clk 0:02:27]}  g6 {[%clk 0:02:35]} 14. Be3 {[%clk 0:02:26]}  Nfd7 {[%clk 0:02:28]} 15. b3 {[%clk 0:02:02]}  Ne5 {[%clk 0:02:27]} 16. Qd2 {[%clk 0:02:00]}  h5 {[%clk 0:02:25]} 17. h3 {[%clk 0:01:58]}  Bh4 {[%clk 0:02:19]} 18. Red1 {[%clk 0:01:55]}  Qe7 {[%clk 0:01:49]} 19. Kh2 {[%clk 0:01:31]}  Bf6 {[%clk 0:01:44]} 20. Be2 {[%clk 0:01:15]}  g5 {[%clk 0:01:38]} 21. Rf1 {[%clk 0:01:09]}  Ng6 {[%clk 0:01:36]} 22. Kg1 {[%clk 0:01:08]}  h4 {[%clk 0:01:18]} 23. Rfd1 {[%clk 0:01:03]}  Qe5 {[%clk 0:01:06]} 24. Bf1 {[%clk 0:01:00]}  Bd7 {[%clk 0:00:45]} 25. Nde2 {[%clk 0:00:58]}  Be7 {[%clk 0:00:30]} 26. Bd4 {[%clk 0:00:55]}  Nxe4 {[%clk 0:00:19]} 27. Nxe4 {[%clk 0:00:45]}  Qf5 {[%clk 0:00:14]} 28. Ba1 {[%clk 0:00:38]}  Rad8 {[%clk 0:00:10]} 29. Nd4 {[%clk 0:00:28]}  Qf4 {[%clk 0:00:05]} 30. Qxf4 {[%clk 0:00:27]}  Nxf4 {[%clk 0:00:05]} 31. Ne2 {[%clk 0:00:28]}  Nxe2+ {[%clk 0:00:03]} 32. Bxe2 {[%clk 0:00:29]}  f5 {[%clk 0:00:02]} 33. Nf6+ {[%clk 0:00:23]}  Bxf6 {[%clk 0:00:00]} 34. Bxf6 {[%clk 0:00:24]} 1-0


[Site "https://www.chess.com"]